Cogmind - Beta 12 *** ADVENTURER MODE // 2023.04.30 @ 12:31:09 Player: zxpr0jk Result: Core destroyed Performance ------------- Evolutions (3) 1500 Regions Visited (10) 2000 Robots Destroyed (163) 815 Value Destroyed (7452) 7452 Prototype IDs (36) 720 Alien Tech Used (0) 0 Bonus (3333) 3333 TOTAL SCORE: 15820 Bonus ------- High Alert Combat Kills 1006 Follower Combat Kills 146 Entered Garrisons 400 Used RIF Installer 1000 Entered DSFs 500 Aligned with FarCom 300 Friendly Fire -19 Cogmind --------- Core Integrity 0/700 Matter 209/300 Energy 266/290 System Corruption 0% Temperature Critical (1306) Movement Core (500) Ox9 Location -7/DSF Parts ------- > --- POWER (1) -------- Reinforced Deuterium Engine > --- PROPULSION (3) --- Carbon-fiber Leg Improved Carbon-fiber Leg > --- UTILITY (5) ------ Core Analyzer Improved Reaction Control System Graphene Brace Advanced Hacking Suite Authchip [Device] > --- WEAPON (4) ------- Power Maul Power Maul Power Maul Power Maul > --- INVENTORY (5) ---- Skeleton Box Particle Gun Powered Hammer Powered Hammer Lance Peak State ------------ > --- POWER ------------ Micro Fission Core > --- PROPULSION ------- Advanced Treads Advanced Treads Armored Medium Treads > --- UTILITY ---------- Improved Signal Interpreter Advanced Hacking Suite System Shield > --- WEAPON ----------- XL Autogun Array > --- INVENTORY -------- Improved Sensor Array Relay Coupler [NC] Relay Coupler [Behemoth] Skeleton Box Remote Datajack [Rating: 68] Favorites ----------- Power Micro Fission Core Engine Heavy Ion Engine Power Core Micro Fission Core Propulsion Light Treads Treads Light Treads Leg Carbon-fiber Leg Hover Unit Gravmag System Flight Unit Improved Cesium-ion Thruster Utility System Shield Device Sensor Array Storage Small Storage Unit Processor Improved Signal Interpreter Hackware System Shield Weapon XL Autogun Subcomponent Energy Gun Medium Laser Energy Cannon Heavy Ion Cannon Ballistic Gun XL Autogun Subcomponent Ballistic Cannon Advanced Assault Cannon Special Weapon Remote Datajack Impact Weapon Power Maul Piercing Weapon Lance Special Melee Weapon Improved Datajack Build | -11 -10 -10 -10 -9 -8 -8 -8 -8 -7 -7 ------- Run | Jun Mat Min Exi Min Mat Gar Mat Gar Fac DSF Slots Evolved 6 | . . . . . 4 . . . 2 . Power . | . . . . . . . . . . . Propulsion 1 | . . . . . 1 . . . . . Utility 3 | . . . . . 1 . . . 2 . Weapon 2 | . . . . . 2 . . . . . Parts Attached 101 | 6 1 1 1 2 24 5 27 14 3 17 Power 13 | 1 . 1 . 1 4 1 1 2 1 1 Engine 8 | 1 . . . 1 4 . . . 1 1 Core 5 | . . 1 . . . 1 1 2 . . Reactor . | . . . . . . . . . . . Propulsion 31 | 2 . . . . 12 1 9 4 . 3 Treads 21 | 2 . . . . 10 1 5 2 . 1 Leg 3 | . . . . . 1 . . . . 2 Wheel . | . . . . . . . . . . . Hover 6 | . . . . . . . 4 2 . . Flight 1 | . . . . . 1 . . . . . Utility 21 | 1 1 . . 1 6 1 1 2 2 6 Device 7 | . 1 . . . 2 . . 1 . 3 Storage 1 | 1 . . . . . . . . . . Processor 5 | . . . . 1 2 . 1 . . 1 Hackware 8 | . . . . . 2 1 . 1 2 2 Protection . | . . . . . . . . . . . Artifact . | . . . . . . . . . . . Weapon 36 | 2 . . 1 . 2 2 16 6 . 7 Energy Gun 2 | 1 . . . . . . . . . 1 Energy Cannon 1 | . . . . . . . 1 . . . Ballistic Gun 14 | 1 . . 1 . 2 1 8 1 . . Ballistic Cannon 5 | . . . . . . . 5 . . . Launcher . | . . . . . . . . . . . Special Weapon 5 | . . . . . . . 2 3 . . Impact Weapon 6 | . . . . . . . . . . 6 Slashing Weapon . | . . . . . . . . . . . Piercing Weapon 2 | . . . . . . . . 2 . . Special Melee Weapon 1 | . . . . . . 1 . . . . Unidentified Prototypes 3 | . . . . . 2 . 1 . . . Parts Lost 13 | . . . . . . . . 1 . 12 Power 2 | . . . . . . . . 1 . 1 Propulsion 3 | . . . . . . . . . . 3 Utility 5 | . . . . . . . . . . 5 Weapon 3 | . . . . . . . . . . 3 Highest Loss Streak 7 | . . . . . . . . 1 . 7 To Critical Strikes . | . . . . . . . . . . . Average Slot Usage (%) 85 | . 97 100 100 100 70 71 93 97 100 76 Engine 3 | . 14 10 . . 9 8 . . . 5 Core 5 | . . 3 14 13 . . 8 8 6 . Treads 21 | . 28 28 28 28 24 27 17 16 7 5 Hover 3 | . . . . . . . 9 8 15 3 Device 4 | . 11 14 14 14 3 . . 3 7 13 Storage 1 | . 14 14 14 2 . . . . . . Processor 8 | . . . . 11 14 9 9 4 . 2 Hackware 12 | . . . . . 9 18 18 18 30 15 Energy Cannon 1 | . . . . . . . 3 8 . . Ballistic Gun 13 | . 14 14 22 28 9 8 17 5 7 4 Ballistic Cannon 3 | . . . . . . . 8 6 . . Special Weapon 1 | . . . . . . . . 7 7 1 Piercing Weapon 1 | . . . . . . . . 7 15 7 Naked Turns . | . . . . . . . . . . . Heaviest Build 30 | 12 13 15 15 15 27 23 28 28 24 30 Greatest Support 71 | 40 40 40 40 40 62 69 71 69 28 47 Greatest Overweight (x) 9 | . . . . . 1 . 2 1 . 9 Average Overweight (x) . | . . . . . . . . . . . Largest Inventory Capacity 8 | 8 8 8 8 8 5 5 5 5 5 5 Average Capacity 5 | 7 8 8 8 5 5 5 5 5 5 5 Most Carried 8 | 3 5 6 8 7 5 5 5 5 3 5 Average Carried 4 | 1 3 5 6 5 3 4 4 3 2 1 Final Capacity 8 | 8 8 8 8 5 5 5 5 5 5 5 Final Carried 7 | 3 5 6 7 5 4 5 5 4 2 5 Class Distribution -------------------- 58% | Hacker-Skirmisher 15% | Hacker-Mutant 13% | Skirmisher 9% | Mutant Dominant Class ---------------- Mutant | -10/Materials Mutant | -10/Mines Mutant | -10/Exiles Skirmisher | -9/Mines Hacker-Skirmisher | -8/Materials Hacker-Skirmisher | -8/Garrison Hacker-Skirmisher | -8/Materials Hacker-Mutant | -8/Garrison Hacker-Mutant | -7/Factory Hacker-Mutant | -7/DSF Resources | -11 -10 -10 -10 -9 -8 -8 -8 -8 -7 -7 ----------- Run | Jun Mat Min Exi Min Mat Gar Mat Gar Fac DSF Matter Collected 4737 | 199 . 81 . 102 1143 1160 1288 488 . 276 Remotely . | . . . . . . . . . . . Salvage Created 6898 | . . . . 267 1871 1198 2088 823 . 651 Parts 386 | . . . . 14 110 84 105 41 . 32 Haulers Intercepted . | . . . . . . . . . . . Recyclers Shooed . | . . . . . . . . . . . Parts Field Recycled . | . . . . . . . . . . . Retrieved Matter . | . . . . . . . . . . . Parts Self-Destructed . | . . . . . . . . . . . Prevented . | . . . . . . . . . . . Kills | -11 -10 -10 -10 -9 -8 -8 -8 -8 -7 -7 ------- Run | Jun Mat Min Exi Min Mat Gar Mat Gar Fac DSF Combat Hostiles Destroyed 139 | . . . . 6 34 33 36 18 . 12 Melee 15 | . . . . . . . . 5 . 10 Guns 108 | . . . . 6 34 33 32 2 . 1 Cannons 15 | . . . . . . . 4 11 . . Classes Destroyed 17 | . . . . 1 10 2 . 2 . 2 Worker 2 | . . . . . 2 . . . . . Builder 3 | . . . . . 2 . 1 . . . Tunneler 1 | . . . . . 1 . . . . . Recycler 1 | . . . . . 1 . . . . . Carrier 1 | . . . . . . . . 1 . . Operator 6 | . . . . . 3 . 3 . . . Watcher 10 | . . . . . 5 . 4 1 . . Swarmer 22 | . . . . . 7 15 . . . . Cutter 2 | . . . . . . . . 2 . . Grunt 73 | . . . . 6 16 9 22 14 . 6 Brawler 2 | . . . . . 1 . 1 . . . Duelist 2 | . . . . . 1 . 1 . . . Sentry 24 | . . . . . 9 4 10 1 . . Specialist 5 | . . . . . . . . . . 5 Hunter 4 | . . . . . . 1 2 1 . . Programmer 4 | . . . . . . 4 . . . . Heavy 1 | . . . . . . . . . . 1 Best Kill Streak 6 | . . . . 6 5 6 4 3 . 3 Combat Bots Only 6 | . . . . 6 5 6 4 3 . 3 Max Kills in Single Turn 2 | . . . . 2 2 2 2 1 . 1 Gunslinging 1 | . . . . . . . 1 . . . Exploded . | . . . . . . . . . . . Melee 1 | . . . . . . . . 1 . 1 Uniques/NPCs Destroyed . | . . . . . . . . . . . Combat | -11 -10 -10 -10 -9 -8 -8 -8 -8 -7 -7 -------- Run | Jun Mat Min Exi Min Mat Gar Mat Gar Fac DSF Damage Taken 4082 | . . . . 127 286 311 472 786 . 2100 Core 987 | . . . . 33 17 29 112 77 . 719 Absorbed by Shields . | . . . . . . . . . . . Regen/Repaired (Parts) 172 | . . . . . 147 . 25 . . . Core Remaining (%) 81 | 100 . . . 86 . . . 57 . . Volleys Fired 339 | . . . . 12 61 74 79 72 10 31 Largest 4 | . . . . 2 1 1 4 4 1 2 Hottest 181 | . . . . 40 60 60 181 181 5 98 Shots Fired 529 | . . . . 24 61 74 233 95 10 32 Gun 407 | . . . . 24 61 74 187 32 . 29 Cannon 87 | . . . . . . . 38 49 . . Launcher . | . . . . . . . . . . . Special 35 | . . . . . . . 8 14 10 3 Kinetic 472 | . . . . 24 61 74 221 64 . 28 Thermal 22 | . . . . . . . 4 17 . 1 Explosive . | . . . . . . . . . . . Electromagnetic . | . . . . . . . . . . . Robot Hit Streak 45 | . . . . 7 35 45 19 31 5 22 Robot Miss Streak 5 | . . . . 2 3 5 5 2 4 1 Penetration Max 1 | . . . . . . . . . . 1 Secondary Targets 3 | . . . . . . . 3 . . . Max Gunslinging Chain 1 | . . . . . . . 1 . . . Shots Hit Robots 393 | . . . . 19 61 52 139 62 7 53 Core Hits 260 | . . . . 12 68 55 80 27 . 18 Critical Kills 1 | . . . . . . . . 1 . . Critical Parts Destroyed 3 | . . . . . . . . . . 3 Critical Strikes 11 | . . . . . . . 2 4 . 5 Meltdown 1 | . . . . . . . . 1 . . Destroy 1 | . . . . . . . . . . 1 Blast 4 | . . . . . . . 2 2 . . Smash 2 | . . . . . . . . . . 2 Impale 3 | . . . . . . . . 1 . 2 Melee Attacks 50 | . . . . . . . . 25 . 25 Impact 5 | . . . . . . . . . . 5 Slashing . | . . . . . . . . . . . Piercing 45 | . . . . . . . . 25 . 20 Sneak Attacks . | . . . . . . . . . . . Combat Hostiles . | . . . . . . . . . . . Follow-up Attacks 4 | . . . . . . . . 2 . 2 Damage Inflicted 13405 | . . . . 241 3761 2939 3516 1574 . 1374 Guns 10681 | . . . . 227 3641 2939 3136 164 . 574 Cannons 1371 | . . . . . . . 370 1001 . . Explosions 70 | . . . . . 70 . . . . . Melee 1209 | . . . . . . . . 409 . 800 Ramming 74 | . . . . 14 50 . 10 . . . Kinetic 11519 | . . . . 227 3641 2939 3396 760 . 556 Thermal 533 | . . . . . . . 110 405 . 18 Explosive . | . . . . . . . . . . . Electromagnetic 70 | . . . . . 70 . . . . . Impact 194 | . . . . . . . . . . 194 Slashing . | . . . . . . . . . . . Piercing 1015 | . . . . . . . . 409 . 606 Highest Corruption . | . . . . . . . . . . . Average Corruption . | . . . . . . . . . . . Corruption Purged . | . . . . . . . . . . . Corruption Blocked . | . . . . . . . . . . . Overload Shots . | . . . . . . . . . . . Overflow Damage 149 | . . . . . . . 31 48 . 70 Projectiles 49 | . . . . . . . 30 19 . . Explosions 29 | . . . . . . . . 29 . . Melee 71 | . . . . . . . 1 . . 70 Knockbacks 16 | . . . . . 1 . 4 11 . . Impact 1 | . . . . . 1 . . . . . Kinetic 15 | . . . . . . . 4 11 . . Secondary . | . . . . . . . . . . . Self-Inflicted Damage 157 | . . . . . 34 . . 123 . . Shots 2 | . . . . . 1 . . 1 . . Rammed 15 | . . . . 3 8 . 4 . . . Targets Rammed 15 | . . . . 3 8 . 4 . . . Kicked . | . . . . . . . . . . . Crushed . | . . . . . . . . . . . Highest Temperature 1306 | . . . . 4 198 245 546 466 . 1306 Average Temperature 118 | . . . . 1 57 71 103 102 . 498 Received Heat Transfer 1695 | . . . . 93 99 54 297 423 . 729 Effects 28 | . . . . . . . 6 1 . 21 Shutdowns 6 | . . . . . . . 1 1 . 4 Energy Bleed 3 | . . . . . . . 1 . . 2 Interference 3 | . . . . . . . 3 . . . Matter Decay 2 | . . . . . . . 1 . . 1 Short Circuit 2 | . . . . . . . . . . 2 Damage (major) 10 | . . . . . . . . . . 10 Damage (core) 2 | . . . . . . . . . . 2 Siege Activations . | . . . . . . . . . . . Robots Corrupted . | . . . . . . . . . . . Combat Hostiles . | . . . . . . . . . . . Parts Fried 6 | . . . . . . . . . . 6 Impact Corruptions 4 | . . . . . . . 1 . . 3 Robots Melted 1 | . . . . . . . . 1 . . Combat Hostiles . | . . . . . . . . . . . Parts Melted 3 | . . . . . . . . 1 . 2 Heat Transferred 740 | . . . . . . . 148 555 . 37 Parts Sabotaged . | . . . . . . . . . . . Parts Stolen . | . . . . . . . . . . . Parts Stripped . | . . . . . . . . . . . Power Chain Reactions . | . . . . . . . . . . . Missiles Intercepted . | . . . . . . . . . . . Alert | -11 -10 -10 -10 -9 -8 -8 -8 -8 -7 -7 ------- Run | Jun Mat Min Exi Min Mat Gar Mat Gar Fac DSF Peak Influence 1446 | . . . . 140 376 1446 846 856 389 464 Initial 607 | . . . . . 46 43 607 52 389 239 Average 406 | . . . . 32 129 777 576 494 389 332 Maximum Alert Level 4 | . . . . . 1 4 3 3 1 2 Low Security (%) 36 | 100 100 100 . 100 75 10 4 11 . . Level 1 20 | . . . . . 24 7 20 31 100 89 Level 2 20 | . . . . . . 27 42 25 . 10 Level 3 18 | . . . . . . 31 32 31 . . Level 4 3 | . . . . . . 22 . . . . Level 5 . | . . . . . . . . . . . High Security . | . . . . . . . . . . . Max Security . | . . . . . . . . . . . Sterilizations 1 | . . . . . . . . . . 1 Squads Dispatched 13 | . . . . . 4 . 6 . . 3 Investigation 5 | . . . . . 3 . 2 . . . Extermination . | . . . . . . . . . . . Reinforcement 7 | . . . . . 1 . 3 . . 3 Assault 1 | . . . . . . . 1 . . . Garrison . | . . . . . . . . . . . Intercept . | . . . . . . . . . . . Searches Triggered . | . . . . . . . . . . . Construction Impeded 1 | . . . . . . . 1 . . . Haulers Reinforced . | . . . . . . . . . . . Active Scanning Responses . | . . . . . . . . . . . Cargo Convoy Interrupts . | . . . . . . . . . . . Stealth | -11 -10 -10 -10 -9 -8 -8 -8 -8 -7 -7 --------- Run | Jun Mat Min Exi Min Mat Gar Mat Gar Fac DSF Distress Signals 9 | . 2 . . . 3 . 3 1 . . Communications Jammed . | . . . . . . . . . . . Distress Signals . | . . . . . . . . . . . Times Spotted 174 | . . 2 . 9 44 34 45 22 . 18 Peak Tracking Total 7 | . . 2 . 7 4 6 4 3 . 4 Tactical Retreats 7 | . . . . . 1 1 . 1 . 4 Traps | -11 -10 -10 -10 -9 -8 -8 -8 -8 -7 -7 ------- Run | Jun Mat Min Exi Min Mat Gar Mat Gar Fac DSF Traps Triggered 5 | . . . . . 1 . 4 . . . Indirectly . | . . . . . . . . . . . Trap Hack Attempts 21 | . . . . . . 21 . . . . Triggered . | . . . . . . . . . . . Disarmed 3 | . . . . . . 3 . . . . Reprogrammed 6 | . . . . . 5 . 1 . . . Reused . | . . . . . . . . . . . Traps Extracted . | . . . . . . . . . . . Installed . | . . . . . . . . . . . Triggered . | . . . . . . . . . . . Machines | -11 -10 -10 -10 -9 -8 -8 -8 -8 -7 -7 ---------- Run | Jun Mat Min Exi Min Mat Gar Mat Gar Fac DSF Machines Disabled 18 | . . . . . 4 6 5 3 . . Max in Single Turn 2 | . . . . . 2 1 1 2 . . Garrison Relay 5 | . . . . . . 4 . 1 . . Phase Generator 1 | . . . . . . . . 1 . . Machines Repaired . | . . . . . . . . . . . Machines Sabotaged . | . . . . . . . . . . . Overloaded Fab Kills . | . . . . . . . . . . . Hacking | -11 -10 -10 -10 -9 -8 -8 -8 -8 -7 -7 --------- Run | Jun Mat Min Exi Min Mat Gar Mat Gar Fac DSF Machines Accessed 47 | . 1 . 5 . 15 3 17 3 3 . Terminals 27 | . 1 . . . 8 3 10 3 2 . Fabricators . | . . . . . . . . . . . Repair Stations 4 | . . . . . 2 . 2 . . . Recycling Units 4 | . . . . . 2 . 2 . . . Scanalyzers 4 | . . . . . 2 . 2 . . . Garrison Access 3 | . . . . . 1 . 1 . 1 . Total Hacks 185 | . 2 . 50 . 54 7 58 8 6 . Successful 155 | . . . 50 . 45 3 49 5 3 . Failed 30 | . 2 . . . 9 4 9 3 3 . Catastrophic 1 | . 1 . . . . . . . . . Database Lockouts . | . . . . . . . . . . . Manual 51 | . 2 . 3 . 20 3 16 4 3 . Terminals 89 | . 2 . . . 31 7 37 8 4 . Fabricators . | . . . . . . . . . . . Repair Stations 14 | . . . . . 9 . 5 . . . Recycling Units 12 | . . . . . 5 . 7 . . . Scanalyzers 14 | . . . . . 7 . 7 . . . Garrison Access 6 | . . . . . 2 . 2 . 2 . Terminal Hacks 94 | . . . 50 . 16 2 22 3 1 . Record 62 | . . . 49 . 6 . 7 . . . Robot Analysis 1 | . . . . . . . 1 . . . Prototype ID Bank 5 | . . . . . 2 . 3 . . . Open Door 1 | . . . . . . 1 . . . . Open DSF 1 | . . . . . . . . . 1 . Emergency Access Points 1 | . . . . . . . . 1 . . Terminal Index 1 | . . . . . . . 1 . . . Alert Level 1 | . . . . . . . 1 . . . Locate Traps 7 | . . . . . 5 . 2 . . . Reprogram Traps 2 | . . . . . 1 . 1 . . . Dispatch Records 1 | . . . . . . . 1 . . . Recall Investigation 1 | . . . . . 1 . . . . . Hauler Manifests 2 | . . . . . . . 2 . . . Registered Prototypes 1 | . . . . . . . 1 . . . Zone Layout 3 | . . . . . 1 . 2 . . . Garrison Registry 2 | . . . . . . 1 . 1 . . Security Stations 1 | . . . . . . . . 1 . . EX-Prototype ID Bank 1 | . . . 1 . . . . . . . Fabricator Hacks . | . . . . . . . . . . . Repair Station Hacks 11 | . . . . . 8 . 3 . . . Scan Component 6 | . . . . . 4 . 2 . . . Repair 5 | . . . . . 4 . 1 . . . Recycling Unit Hacks 5 | . . . . . 2 . 3 . . . Report Inventory 5 | . . . . . 2 . 3 . . . Scanalyzer 10 | . . . . . 5 . 5 . . . Insert Component 5 | . . . . . 3 . 2 . . . Analyze 5 | . . . . . 2 . 3 . . . Garrison Access Hacks 4 | . . . . . 1 . 1 . 2 . Unlock Access 3 | . . . . . 1 . 1 . 1 . Coupler Status 1 | . . . . . . . . . 1 . Unauthorized Hacks 31 | . . . . . 13 1 15 2 . . Terminals 21 | . . . . . 8 1 10 2 . . Botnet 20 | . . . . . 7 1 10 2 . . Search 1 | . . . . . 1 . . . . . Fabricators . | . . . . . . . . . . . Repair Stations 1 | . . . . . 1 . . . . . Mechanics 1 | . . . . . 1 . . . . . Recycling Units 6 | . . . . . 2 . 4 . . . Reject 3 | . . . . . 1 . 2 . . . Recyclers 3 | . . . . . 1 . 2 . . . Scanalyzers 1 | . . . . . 1 . . . . . Extract 1 | . . . . . 1 . . . . . Garrison Access 2 | . . . . . 1 . 1 . . . Watchers 2 | . . . . . 1 . 1 . . . Data Cores Recovered 2 | . . . . . 1 . 1 . . . Used . | . . . . . . . . . . . Hacking Detections 29 | . 1 . . . 11 2 11 3 1 . Full Trace Events 2 | . . . . . 1 . 1 . . . Feedback Events . | . . . . . . . . . . . Feedback Blocked . | . . . . . . . . . . . Robot Schematics Acquired . | . . . . . . . . . . . Robots Built . | . . . . . . . . . . . Authchips . | . . . . . . . . . . . Time . | . . . . . . . . . . . Total Robot Build Rating . | . . . . . . . . . . . Part Schematics Acquired 7 | . . . . . 5 . 2 . . . Parts Built . | . . . . . . . . . . . Authchips . | . . . . . . . . . . . Time . | . . . . . . . . . . . Total Part Build Rating . | . . . . . . . . . . . Parts Repaired 5 | . . . . . 4 . 1 . . . Time 148 | . . . . . 104 . 44 . . . Parts Recycled . | . . . . . . . . . . . Recycled Matter . | . . . . . . . . . . . Retrieved Matter . | . . . . . . . . . . . Retrieved Components . | . . . . . . . . . . . Parts Scanalyzed 4 | . . . . . 2 . 2 . . . Part Schematics Acquired 3 | . . . . . 1 . 2 . . . Parts Damaged . | . . . . . . . . . . . Bothacking | -11 -10 -10 -10 -9 -8 -8 -8 -8 -7 -7 ------------ Run | Jun Mat Min Exi Min Mat Gar Mat Gar Fac DSF Used RIF Installer 2 | . . . . . . 1 . 1 . . Command Fork 1 | . . . . . . . . 1 . . Robots Hacked 6 | . . . . . . . 1 2 2 1 Non-combat 4 | . . . . . . . 1 1 2 . Combat 2 | . . . . . . . . 1 . 1 Robot Hacks Applied 12 | . . . . . . . 1 3 7 1 parse_system 4 | . . . . . . . . 2 1 1 no_distress 2 | . . . . . . . 1 . 1 . generate_echo 1 | . . . . . . . . . 1 . map_walls 1 | . . . . . . . . . 1 . map_earth 1 | . . . . . . . . . 1 . link_fov 2 | . . . . . . . . . 2 . formatsys_high 1 | . . . . . . . . 1 . . Relay Couplers Released 23 | . . . . . . 19 . 4 . . Machine Destruction 20 | . . . . . . 16 . 4 . . Programmers 3 | . . . . . . 3 . . . . Attached 2 | . . . . . . . . 1 1 . Fabnet Peak Effective % . | . . . . . . . . . . . Robots Rewired . | . . . . . . . . . . . Allies Hacked . | . . . . . . . . . . . Hacks Repelled . | . . . . . . . . . . . Allies | -11 -10 -10 -10 -9 -8 -8 -8 -8 -7 -7 -------- Run | Jun Mat Min Exi Min Mat Gar Mat Gar Fac DSF Total Allies 5 | . . . . 3 . 1 . 1 . . Largest Group 3 | . . . . 3 . 1 . 1 . . Highest-Rated Group 85 | . . . . 40 . 39 . 85 . . Highest-Rated Ally 85 | . . . . 16 . 39 . 85 . . Total Orders 1 | . . . . . . . . 1 . . ROAM 1 | . . . . . . . . 1 . . Ally Attacks 42 | . . . . 21 . 10 . 11 . . Total Damage 1079 | . . . . 239 . 112 . 728 . . Kills 6 | . . . . 4 . 1 . 1 . . Allies Corrupted . | . . . . . . . . . . . Allies Melted 1 | . . . . . . 1 . . . . Intel | -11 -10 -10 -10 -9 -8 -8 -8 -8 -7 -7 ------- Run | Jun Mat Min Exi Min Mat Gar Mat Gar Fac DSF Robot Analysis Total 1 | . . . . . . . 1 . . . Derelict Logs Recovered 1 | . . . . 1 . . . . . . Drone Launches . | . . . . . . . . . . . Drone Recoveries . | . . . . . . . . . . . Exploration | -11 -10 -10 -10 -9 -8 -8 -8 -8 -7 -7 ------------- Run | Jun Mat Min Exi Min Mat Gar Mat Gar Fac DSF Turns Passed 14044 | 77 215 202 883 1169 3338 2140 3766 1782 148 324 Spaces Moved 8203 | 44 133 124 545 690 1780 1222 2195 1222 131 117 Core 6 | 4 . . . . . . . . . 2 Treads 6776 | 40 133 124 545 690 1777 1222 1718 504 . 23 Legs 59 | . . . . . 3 . . . . 56 Wheels . | . . . . . . . . . . . Hover 1362 | . . . . . . . 477 718 131 36 Flight . | . . . . . . . . . . . Fastest Speed 50 | 50 160 160 160 160 155 155 52 97 97 97 Average Speed 149 | 150 160 160 160 160 158 155 150 122 97 134 Slowest Speed 500 | 160 160 160 160 160 190 158 225 190 97 500 Overloaded Moves . | . . . . . . . . . . . Propulsion Burnouts . | . . . . . . . . . . . Robots Hopped . | . . . . . . . . . . . Cave-ins Triggered . | . . . . . . . . . . . Exploration Rate (%) 64 | 3 15 52 92 99 89 95 98 94 4 72 Regions Visited 10 Branch Regions 3 Pre-discovered Areas 1 | . . . 1 . . . . . . . Known Exits Taken 4 | . . . . 1 1 . 1 . 1 . Unknown Exits Taken 4 | 1 1 1 1 . . . . . . . Scrap Searched 1 | . . . . 1 . . . . . . Spaces Dug 2 | . . . . . . . 2 . . . Terrain Destroyed 125 | . . . . . 43 . 31 51 . . Melee . | . . . . . . . . . . . Projectile 74 | . . . . . 43 . 31 . . . AOE 51 | . . . . . . . . 51 . . Terrain Rammed . | . . . . . . . . . . . Walls Destroyed . | . . . . . . . . . . . Machines Disabled . | . . . . . . . . . . . Actions | -11 -10 -10 -10 -9 -8 -8 -8 -8 -7 -7 --------- Run | Jun Mat Min Exi Min Mat Gar Mat Gar Fac DSF Total 9721 | 52 135 127 560 731 2288 1467 2591 1414 146 210 Wait 859 | . . 3 . 19 376 131 260 51 2 17 Move 8191 | 43 132 123 544 689 1779 1220 2194 1220 130 117 Hop . | . . . . . . . . . . . Pick Up 64 | 3 2 . 5 2 17 7 9 14 . 5 Fast Attach 46 | 6 1 . . . 6 2 17 4 . 10 Attach 14 | . . . 1 . 4 1 1 3 2 2 Detach 6 | . . . . . 2 1 . 3 . . Swap 41 | . . 1 . 2 14 2 9 7 1 5 Drop 78 | . . . 7 4 21 8 18 19 1 . Fire 339 | . . . . 12 61 74 79 72 10 31 Melee 44 | . . . . . . . . 21 . 23 Ram . | . . . . . . . . . . . Kick . | . . . . . . . . . . . Crush 15 | . . . . 3 8 . 4 . . . Escape Stasis . | . . . . . . . . . . . Rewire 3 | . . . 3 . . . . . . . Trap 21 | . . . . . . 21 . . . . Miscellaneous . | . . . . . . . . . . . Route ------- -11/Junkyard -10/Materials -10/Mines (discovered 2 exits: [*Mat] / *Exi) -10/Exiles -9/Mines (discovered 2 exits: *Mat x2) -8/Materials (discovered 4 exits: *Fac x3 / Gar) -8/Garrison (discovered 3 exits: *Mat x3) -8/Materials (discovered 4 exits: *Fac x3 / Gar) -8/Garrison (discovered 3 exits: *Fac x3) -7/Factory (discovered 3 exits: Sto / Gar / DSF) -7/DSF History --------- Turn | Location | Event 6 | -11/Junkyard | Discovered new exit (range 15) 78 | -11/Junkyard | Entered Materials 164 | -10/Materials | Discovered new exit (range 6) 247 | -10/Materials | Met 8R-AWN 293 | -10/Materials | Entered Mines 294 | -10/Mines | Followed 8R-AWN into the Mines 302 | -10/Mines | Build established: Mutant 380 | -10/Mines | Discovered new exit (range 6) 487 | -10/Mines | Discovered new exit (range 5) 495 | -10/Mines | Entered Exiles 534 | -10/Exiles | Welcomed by 8R-AWN 574 | -10/Exiles | Met EX-HEX 659 | -10/Exiles | Met EX-DEC 672 | -10/Exiles | Learned location of Zion (-6) 715 | -10/Exiles | Met EX-BIN 739 | -10/Exiles | Aligned with FarCom system 741 | -10/Exiles | Given EX-Vault access code 825 | -10/Exiles | Opened EX-Vault 838 | -10/Exiles | Found Prototype Device 842 | -10/Exiles | Found Prototype Special Weapon 850 | -10/Exiles | Identified Skeleton Box 850 | -10/Exiles | Identified Field Lobotomy Kit 856 | -10/Exiles | Found XL Autogun Array 896 | -10/Exiles | Warned to stay clear of 0b10 Research branches 1007 | -10/Exiles | Visited The Gauntlet 1361 | -10/Exiles | Discovered new exit (range 14) 1378 | -10/Exiles | Stole two prototypes: Skeleton Box, XL Autogun Array 1378 | -10/Exiles | Entered Mines 1381 | -9/Mines | Met a Derelict bent on vengeance 1388 | -9/Mines | Assisted by bots powering up and referring to "LRC-V3" 1498 | -9/Mines | Received a Rocket Launcher from a helpful Derelict 1620 | -9/Mines | A weapon hastily lodged in a ceiling crevice suddenly fell to the ground 1638 | -9/Mines | Discovered new exit (range 7) 1649 | -9/Mines | Identified exit to Materials 1683 | -9/Mines | Build established: Skirmisher 2246 | -9/Mines | Discovered exit to Materials (range 4) 2547 | -9/Mines | Entered Materials 2547 | -8/Materials | Evolved 4 slots: Propulsion x1, Utility x1, Weapon x2 2685 | -8/Materials | Identified exit to Garrison 2813 | -8/Materials | Discovered new exit (range 16) 2836 | -8/Materials | Identified exit to Factory 3601 | -8/Materials | Build established: Scavenger-Skirmisher 3851 | -8/Materials | Repaired Lgt. Treads 3880 | -8/Materials | Repaired Lgt. Treads 3958 | -8/Materials | Build established: Hacker-Skirmisher 4134 | -8/Materials | Discovered exit to Factory (range 4) 5468 | -8/Materials | Discovered exit to Factory (range 16) 5589 | -8/Materials | Repaired Lgt. Treads 5616 | -8/Materials | Repaired Lgt. Treads 5885 | -8/Materials | Entered Garrison 5896 | -8/Garrison | Triggered checkpoint 6022 | -8/Garrison | Discovered new exit (range 85) 6022 | -8/Garrison | Discovered new exit (range 60) 6022 | -8/Garrison | Discovered new exit (range 35) 6126 | -8/Garrison | Triggered checkpoint 6133 | -8/Garrison | Rescued a captive Derelict 6229 | -8/Garrison | Triggered checkpoint 6236 | -8/Garrison | Triggered checkpoint 6330 | -8/Garrison | Triggered checkpoint 6345 | -8/Garrison | Garrison Relay disabled 6501 | -8/Garrison | Garrison Relay disabled 6542 | -8/Garrison | Identified exit to Materials 6744 | -8/Garrison | Triggered checkpoint 6946 | -8/Garrison | Installed Relay Interface Framework 7262 | -8/Garrison | Triggered checkpoint 7302 | -8/Garrison | Triggered checkpoint 7476 | -8/Garrison | Triggered checkpoint 7564 | -8/Garrison | Garrison Relay disabled 7697 | -8/Garrison | Garrison Relay disabled 8025 | -8/Garrison | Entered Materials 8627 | -8/Materials | Discovered exit to Factory (range 13) 8825 | -8/Materials | First assault squad dispatched 9623 | -8/Materials | Discovered exit to Factory (range 15) 10317 | -8/Materials | Repaired Adv. Assault Cannon 10328 | -8/Materials | Identified exit to Garrison 10384 | -8/Materials | Discovered exit to Factory (range 15) 11791 | -8/Materials | Entered Garrison 11802 | -8/Garrison | Discovered exit to Factory (range 37) 11802 | -8/Garrison | Discovered exit to Factory (range 89) 11802 | -8/Garrison | Discovered exit to Factory (range 67) 11850 | -8/Garrison | Triggered checkpoint 12008 | -8/Garrison | Triggered checkpoint 12223 | -8/Garrison | Build established: Hacker-Mutant 12496 | -8/Garrison | Triggered checkpoint 12564 | -8/Garrison | Triggered checkpoint 12753 | -8/Garrison | Spotted B-75 Beast 12755 | -8/Garrison | Assimilated Beast 3a with formatsys_high 12840 | -8/Garrison | Triggered checkpoint 12921 | -8/Garrison | Learned Factory security intel 12938 | -8/Garrison | Garrison Relay disabled 13062 | -8/Garrison | Triggered checkpoint 13122 | -8/Garrison | Expanded RIF knowledge: Command Fork 13288 | -8/Garrison | Phase Generator disabled 13573 | -8/Garrison | Entered Factory 13573 | -7/Factory | Evolved 2 slots: Utility x2 13574 | -7/Factory | Identified exit to Storage 13575 | -7/Factory | FarCom data flow suspended 13667 | -7/Factory | Identified exit to Garrison 13697 | -7/Factory | Identified exit to DSF 13721 | -7/Factory | Entered DSF 13758 | -7/DSF | Additional patrols routed to DSF 13846 | -7/DSF | Lost 7 parts (1p1n3u2w) 13891 | -7/DSF | Core integrity fell below 50% 13917 | -7/DSF | Sterilization system engaged 13937 | -7/DSF | Ambient heat levels rising (+10) 13952 | -7/DSF | Ambient heat levels rising (+10) 13967 | -7/DSF | Ambient heat levels rising (+10) 13982 | -7/DSF | Ambient heat levels rising (+10) 13984 | -7/DSF | Lost 5 parts (2n2u1w) 13997 | -7/DSF | Ambient heat levels rising (+10) 14012 | -7/DSF | Ambient heat levels rising (+10) 14027 | -7/DSF | Ambient heat levels rising (+10) 14042 | -7/DSF | Ambient heat levels rising (+10) 14045 | -7/DSF | Core integrity fell below 20% 14046 | -7/DSF | Core destroyed Last Messages --------------- 14034_ Overheating: Authchip [Device] damaged (-3). 14034_ Overheating: Power Maul damaged (-66). 14034_ A-02 Transporter heat spikes uncontrollably. 14035_ A-02 Transporter heat damages Lgt. Treads, Med. Storage Unit, Lgt. Treads. 14037_ Carbon-fiber Leg broken. 14037_ Overheating: Short circuit. 14037_ A-02 Transporter heat spikes uncontrollably. 14038_ Imp. Carbon-fiber Leg broken. 14038_ Overheating: Short circuit. 14039_ A-02 Transporter heat damages Med. Storage Unit. 14042_ A-02 Transporter heat damages core (-5). 14042_ ALERT: Ambient heat levels +10. 14043_ Overheating: Energy bleed (-35). 14043_ A-02 Transporter heat damages core (-3). 14045_ Power failure, Rnf. Deuterium Engine shutdown. 14045_ Overheating: Core damaged (-77). 14045_ A-02 Transporter heat damages Lgt. Treads. 14045_ A-02 Transporter heat spikes uncontrollably. 14046_ Overheating: Core damaged (-133). Map ----- +----------------------------------------------------+ | | | | | | | | | ????????????????????????????????????????????????? | | ????????????????????????????????????????????????? | | ????????????????????????????????????????????????? | | ????????????????????????????????????????????????? | | ????????????????????????????????????????????????? | | ????????????????????????????????????????????????? | | ??????????????????????#####?????????????????????? | | ?????????????????????? ?????????????????????? | | ?????????????????????? ?????????????????????? | | ?????????????????????? ?????????????????????? | | ?????????????????????? ?????????????????????? | | ??????????????????????# #?????????????????????? | | ?????????????????????## ##????????????????????? | | ??????????????????????= ]]????????????????????? | | ??????????????????????= ]?????????????????????? | | ??????????????????????= ]?????????????????????? | | ????????????????????### ###???????????????????? | | ????????????????????#!! !!#???????????????????? | | ????????????????????#!! !!#???????????????????? | | ?????????????????????!! !!????????????????????? | | ??????###############?# #??????????? #???????? | | ??????#!! ##///#!!!### @ ##?????????? //??????? | | ??????#!! ##///# !!##%* a##[[[#!!!#? //??????? | | ??????#!! !! ???????? | | ??????#!! a ???????? | | ??????#!! % ^ ???????? | | ??????# ## [ # !!##% ##!!!# ## ???????? | | ??????# ## #!!!### ##?!!!#?? ## ???????? | | ??????### ############ ###?###????# ##??????? | | ???????#/ //#???????!! !!????????? #??????? | | ???????#/ //#???????!! !!#???????? ???????? | | ???????#/ //#????????! !!#???????? ???????? | | ???????## ###??????### ###??????### ##??????? | | ???????#/ #??????#== #??????#[[ #??????? | | ???????#/ #??????#==% %#???????[[ #??????? | | ???????## ##########==%!!! ########?# #???????? | | ??????### ### # #?#[!=###[ #]]###[ ###?????? | | ?????##"" ## # ###^^^%#[! #]]## [ ""###???? | | ????""""" %%!%[=! != """""???? | | ????"##"" %=%%%=% ""##"???? | | ??????#"""""## # # =%%%!!#= #[[##"""""#?????? | | ??????#"""""######### [ =!!#########"""""#?????? | | ??????####"##???????###"###!#???????##"####?????? | | ?????????#"#??????????###?## #???????#"#????????? | | ?????????""????????????????? #???????#""????????? | | ????????????????????????????##??????????????????? | +----------------------------------------------------+ Best States ------------- Heat Dissipation 34 Energy Generation 18 Energy Capacity 290 Matter Stores 300 Matter Capacity 300 Sight Range 16 Robot Scan Range 15 Terrain Scan Density 10 Jamming Range 12 Resistance: KI 20 Resistance: TH 20 Resistance: EX 20 Resistance: EM 20 Resistance: I 20 Resistance: S 20 Resistance: P 20 Evasion (%) 54 Targeting Accuracy 5 Core Analysis 6 Recoil Reduction 3 Offensive Hacking 24 Defensive Hacking 10 Relay Coupler Types 1 Relay Coupler Value 48 Authchip Count 3 Item Schematics ----------------- Lgt. Angular Momentum Engine | -8/Materials | Scanalyzed Datajack | -8/Materials | Extracted Power Shielding | -8/Materials | Extracted Imp. VTOL Module | -8/Materials | Extracted Adv. Weight Redist. System | -8/Materials | Extracted Transmission Jammer | -8/Materials | Scanalyzed Remote Datajack | -8/Materials | Scanalyzed Robot Schematics ------------------ None Fabricated ------------ Nothing Alien Tech Used ----------------- None Achievements -------------- Assimilation Complete Brute Force Gun Specialist Infiltrator Preemptive Strike Challenges ------------ None Game ------ Seed NuclearCargoBroadsword Manual? 0 Play Time 02:40:18 Cumulative 29.2 hours Start 2023.04.30 @ 09:31:48 End 2023.04.30 @ 12:31:09 Sessions 1 Manual Loads 0 Difficulty Adventurer Special Mode None Game No. 23 Rogue 13 Adventurer 10 Explorer 0 Win Type - Total 0 Types 0/0/0/0/0/0/0/0/0 Lore% 24 Gallery% 26 Achievement% 24 Wizard Run 0 Options --------- ASCII 0 Keyboard 1 Movement Numpad Keybinds 0 Fullscreen 2 Font 18/SmallcapsGlow Map View 76x50 Tactical HUD 1 Map Filters NONE Filters NONE Steam 1 RUN: f5f543d5-082c-490a-aef0-cc405153ee52